bitfinex/quotes_ETHUSD_20240716
["timestamp","ask_amount","ask_price","bid_price","bid_amount"]
[1721110686617,1.49694981,3429.7,3429.6,2.3344]
[1721110687111,0.28961834,3429.7,3429.6,3.096264]
[1721110687461,1.20733147,3429.8,3429.6,6.012044]
[1721110687462,0.60373147,3429.8,3429.6,6.012044]
[1721110687754,0.60373147,3429.8,3429.7,2.9157]
[1721110688362,0.60373147,3429.9,3429.7,2.9157]
[1721110689550,0.60373147,3429.9,3429.6,3.096264]
[1721110689551,0.60373147,3429.8,3429.6,2.3344]
[1721110689722,0.60373147,3429.8,3429.7,5.2484]
[1721110689925,0.60373147,3430.1,3429.9,2.91553]
[1721110690150,0.60373147,3430.2,3430.1,2.91536]
[1721110690359,0.60368489,3430.2,3430.1,2.91536]
[1721110690567,5.41308528,3430.3,3430.1,2.91536]
[1721110691772,5.41308528,3430.3,3429.7,8.24838]
[1721110692071,0.60368489,3430.0,3429.8,3.0]
[1721110692542,0.60368489,3430.0,3429.7,3.0]
[1721110692865,0.60368489,3430.0,3429.6,8.25017]
[1721110693366,6.01673186,3430.3,3429.7,2.9157]
[1721110693367,0.60368489,3430.1,3429.7,2.9157]
[1721110693533,0.60368489,3430.1,3429.8,3.0]
[1721110694135,0.60368489,3430.2,3429.8,3.0]
[1721110694767,4.80940039,3430.3,3429.8,3.0]
[1721110694768,5.41308528,3430.3,3429.8,7.032187]
[1721110695265,0.60368489,3430.2,3429.8,5.9156]
[1721110695566,4.80940039,3430.3,3430.1,2.3136]
[1721110696540,4.80940039,3430.3,3430.1,5.22889]
[1721110697330,4.80940039,3430.3,3430.2,2.91528]
[1721110697644,12.3,3430.8,3430.2,2.91528]
[1721110697645,12.90322815,3430.8,3430.5,2.915]
[1721110697844,0.60322815,3430.8,3430.5,2.915]
[1721110698339,0.60322815,3430.9,3430.5,2.915]
[1721110699171,0.60322815,3430.9,3430.3,2.91519]
[1721110699371,0.60322815,3430.7,3430.4,2.91509]
[1721110699581,0.90484223,3430.8,3430.4,2.91509]
[1721110699582,0.60322815,3430.8,3430.4,2.91509]
[1721110699956,0.60322815,3430.8,3430.4,2.91503]
[1721110700375,0.60322815,3430.9,3430.5,2.91501]
[1721110700572,0.60322815,3430.8,3430.5,2.91501]
[1721110700761,0.60322815,3430.9,3430.5,2.91501]
[1721110701253,0.60322815,3431.0,3430.5,2.91501]
[1721110701587,0.60322815,3431.0,3430.2,2.91526]
[1721110701588,0.60322815,3430.9,3430.2,2.91526]
[1721110701783,0.60322815,3430.9,3430.3,3.0]
[1721110701965,4.80940039,3431.3,3430.3,3.0]
[1721110701966,4.80940039,3431.3,3430.4,2.91505]
[1721110702167,0.60259224,3431.0,3430.4,2.91505]
[1721110703987,0.60259224,3431.1,3430.4,2.91505]
[1721110704300,0.60259224,3431.1,3430.5,2.91501]
[1721110705367,0.60208038,3431.1,3430.5,2.91501]
[1721110705813,0.60208038,3431.2,3430.6,2.91493]
[1721110705990,5.41148077,3431.3,3430.8,5.1713]
[1721110706170,4.80940039,3431.3,3430.9,2.91468]
[1721110707865,0.60208038,3431.5,3430.9,2.91468]
[1721110708080,0.60208038,3431.6,3430.9,2.91468]
[1721110708801,0.60208038,3431.6,3431.0,2.91459]
[1721110709005,5.71252097,3431.7,3431.1,2.9145]
[1721110709006,5.41148077,3431.7,3431.1,2.9145]
[1721110709201,4.80940039,3431.7,3431.1,2.9145]
[1721110709781,4.80940039,3431.7,3431.2,2.91434]
[1721110710102,4.80940039,3431.7,3431.3,3.582878]
[1721110710472,4.80940039,3431.7,3431.5,2.91415]
[1721110711800,4.80940039,3431.7,3431.3,3.0]
[1721110712109,4.80940039,3431.7,3430.9,3.8949132]
[1721110712110,4.80940039,3431.7,3431.1,3.0]
[1721110712271,4.80940039,3431.7,3431.0,3.0]
[1721110712885,4.80940039,3431.7,3430.9,2.91466]
[1721110713216,4.80940039,3431.7,3431.0,5.91459]
[1721110715784,4.80940039,3431.7,3431.0,3.0]
[1721110715992,4.80940039,3431.7,3431.4,2.91419]
[1721110717594,4.80940039,3431.7,3431.5,2.91417]
[1721110719903,2.3943,3432.2,3431.6,2.91409]
[1721110723586,2.99526535,3432.2,3431.6,2.91409]
[1721110723789,3.0537649,3432.2,3431.4,2.91424]
[1721110724305,2.99526535,3432.2,3431.4,2.91424]
[1721110724710,2.99534669,3432.2,3431.4,2.91424]
[1721110724894,2.99534669,3432.2,3431.5,2.91417]
[1721110725094,2.3943,3432.2,3431.5,2.91417]
[1721110725613,2.99534669,3432.2,3431.5,2.91417]
[1721110726119,5.41044708,3432.3,3431.8,2.998]
[1721110726318,4.80940039,3432.3,3432.2,8.20768]
[1721110726521,4.80940039,3432.3,3432.2,11.20768]
[1721110726821,4.80940039,3432.3,3432.2,15.833387]
[1721110730458,4.80940039,3432.3,3432.2,14.12126]
[1721110731873,4.80940039,3432.9,3432.3,2.91349]
[1721110732014,12.90126422,3433.2,3432.3,5.91349]
[1721110732216,12.90126422,3433.2,3431.3,5.98827]
[1721110732217,2.4977,3433.0,3431.5,2.4763]
[1721110732418,0.60126422,3432.7,3431.6,2.91402]
[1721110732616,0.65976377,3432.7,3431.6,2.91402]
[1721110732934,0.60126422,3432.6,3431.8,2.91384]
[1721110733256,3.39959633,3432.8,3432.0,2.91369]
[1721110733257,3.09896422,3432.8,3432.0,2.91369]
[1721110733945,5.41066461,3432.9,3432.0,2.91369]
[1721110734116,5.41066461,3432.9,3432.1,2.91365]
[1721110734653,4.80940039,3432.9,3432.5,2.9133]
[1721110734816,0.60126422,3433.1,3432.5,2.9133]
[1721110736132,3.03516422,3433.2,3432.5,2.9133]
[1721110736538,2.4339,3433.2,3432.5,2.9133]
[1721110737622,0.60126422,3433.3,3432.5,2.9133]
[1721110738134,5.41066461,3433.4,3432.6,2.91324]
[1721110738339,0.60126422,3433.3,3432.6,2.91324]
[1721110738879,5.41066461,3433.4,3432.6,2.91324]
[1721110739027,0.60126422,3433.3,3432.6,2.91324]
[1721110739467,5.41066461,3433.4,3432.7,2.91314]
[1721110739771,0.60126422,3433.3,3432.7,2.91314]
[1721110740321,0.60126422,3433.2,3432.7,2.91314]
[1721110740732,0.60126422,3433.2,3432.4,2.91341]
[1721110740937,0.60126422,3433.2,3432.2,2.998]
[1721110740938,2.4818,3433.1,3432.1,2.91359]
[1721110741277,2.4818,3433.1,3432.2,3.0]
[1721110741278,0.6011561,3433.0,3432.2,3.0]
[1721110741483,3.0829561,3433.1,3432.2,3.0]
[1721110741637,0.6011561,3433.0,3432.2,3.0]
[1721110741838,3.0829561,3433.1,3432.3,2.91349]
[1721110742036,3.0829561,3433.1,3432.4,3.0]
[1721110742293,0.6011561,3433.0,3432.4,3.0]
[1721110742638,0.6011561,3433.2,3432.7,2.91315]
[1721110744289,0.90173415,3433.3,3432.7,2.91315]
[1721110744290,0.6011561,3433.3,3432.7,2.91315]
[1721110745248,0.6011561,3433.3,3432.4,6.320308]
[1721110745578,4.80940039,3433.4,3433.0,2.91289]
[1721110746577,0.6011561,3433.6,3433.0,2.91289]
[1721110746736,0.6011561,3433.5,3433.0,2.91289]
[1721110746932,0.6011561,3433.6,3433.1,2.91281]
[1721110747438,0.6011561,3433.5,3433.0,2.91288]
[1721110747695,0.6011561,3433.4,3432.6,2.91322]
[1721110747869,0.6011561,3433.4,3432.7,5.91315]
[1721110748074,0.6011561,3433.4,3432.8,3.0]
[1721110748279,0.6011561,3433.4,3432.8,5.91307]
[1721110748985,0.6011561,3433.3,3432.8,5.91307]
[1721110749309,0.6011561,3433.3,3432.8,3.0]
[1721110749463,2.4474,3433.2,3432.1,2.3002]
[1721110749663,2.4474,3433.2,3431.9,2.91382]
[1721110749664,0.6011561,3433.1,3431.9,2.91382]
[1721110749917,2.4474,3433.2,3432.2,2.91358]
[1721110750198,0.60187855,3433.0,3432.2,2.91358]
[1721110750498,0.60187855,3432.9,3432.3,2.91349]
[1721110750862,0.60187855,3432.9,3432.4,3.0]
[1721110751576,0.60187855,3432.8,3432.4,3.0]
[1721110751765,0.60187855,3432.9,3432.4,3.0]
[1721110752109,0.60187855,3432.8,3432.4,3.0]
[1721110752407,0.60187855,3432.7,3432.0,2.91374]
[1721110752571,0.60187855,3432.8,3432.1,3.0]
[1721110752776,0.60187855,3432.8,3432.3,2.91348]
[1721110753101,0.60187855,3432.8,3432.1,3.0]
[1721110753102,0.60187855,3432.8,3432.7,2.91315]
[1721110753269,0.60187855,3432.9,3432.7,2.91315]
[1721110753468,0.60187855,3432.9,3432.4,2.91333]
[1721110753701,0.60254834,3432.9,3432.4,2.91333]
[1721110754206,0.60254834,3433.0,3432.4,3.754653]
[1721110754372,0.60254834,3433.0,3432.7,2.91309]
[1721110754564,0.60254834,3433.1,3433.0,2.9129]
[1721110754763,0.60254834,3433.3,3433.0,2.9129]
[1721110754973,0.60254834,3433.3,3433.1,2.91278]
[1721110755221,0.90382251,3433.5,3433.1,2.91278]
[1721110755222,0.60254834,3433.4,3433.1,2.91278]
[1721110755891,13.20382251,3433.6,3433.0,2.9129]
[1721110755892,0.60254834,3433.3,3433.0,2.9129]
[1721110756320,0.60254834,3433.2,3433.0,2.9129]
[1721110756522,0.60254834,3433.3,3433.0,2.9129]
[1721110757230,0.60254834,3433.3,3432.5,3.0]
[1721110757231,0.60254834,3433.3,3433.1,2.9128]
[1721110757583,0.60254834,3433.3,3432.9,2.91298]
[1721110757584,0.60254834,3433.3,3433.2,2.91273]
[1721110758077,0.90382251,3433.5,3433.2,2.91273]
[1721110758283,0.60272858,3433.3,3433.2,2.91273]
[1721110759514,4.80940039,3433.7,3433.2,2.91273]
[1721110759697,0.60285586,3433.5,3433.2,5.8254]
[1721110759887,0.60285586,3433.5,3433.2,3.28971501]
[1721110760083,0.60285586,3433.5,3433.3,2.91263]
[1721110760397,0.62153501,3434.2,3433.4,2.454]
[1721110760597,0.0186257,3434.2,3434.1,2.91197]
[1721110761813,0.0186257,3434.2,3433.9,2.9121]
[1721110761983,0.0186257,3434.2,3434.0,3.0]
[1721110762937,0.0186257,3434.2,3433.6,2.91238]
[1721110763237,0.0186257,3434.2,3433.7,5.91229]
[1721110763238,0.62097773,3434.2,3433.7,5.91229]
[1721110763409,0.62097773,3434.2,3433.7,2.91229]
[1721110763410,0.0186257,3434.2,3433.7,2.91229]
[1721110763799,0.62097773,3434.2,3433.7,2.91229]
[1721110764041,0.0186257,3434.2,3433.7,2.91229]
[1721110766146,0.0186257,3434.2,3433.8,2.91221]
[1721110767021,0.0186257,3434.2,3434.0,2.91201]
[1721110767373,0.0186257,3434.2,3434.1,2.91197]
[1721110767522,0.0186257,3434.2,3434.1,5.91197]
[1721110770255,0.0186257,3434.2,3434.1,8.82394]
[1721110770445,0.0186257,3434.2,3434.1,9.706334]
[1721110773257,0.0186257,3434.2,3434.1,12.704334]
[1721110776583,0.0186257,3434.2,3434.1,6.794364]
[1721110777449,0.0186257,3434.2,3434.1,9.792364]
[1721110777949,0.0186257,3434.2,3434.1,12.704334]
[1721110780589,0.0186257,3434.2,3434.1,13.254334]
[1721110781103,0.0186257,3434.2,3434.1,16.166304]
[1721110781303,0.0186257,3434.2,3434.1,15.539634]
[1721110784899,0.0186257,3434.2,3434.1,13.254334]
[1721110787334,0.0186257,3434.2,3434.1,16.166304]
[1721110788099,0.0186257,3434.2,3434.1,18.504604]
[1721110788311,0.0186257,3434.2,3434.1,21.578604]
[1721110788955,0.0186257,3434.2,3434.1,18.580604]
[1721110791239,0.0186257,3434.2,3434.1,15.506604]
[1721110791535,0.0186257,3434.2,3434.1,9.706334]
[1721110793597,0.0186257,3434.2,3434.1,6.794364]
[1721110793832,0.0186257,3434.2,3434.1,5.91197]
[1721110794136,0.0186257,3434.2,3434.1,2.91197]
[1721110794348,0.0186257,3434.2,3433.9,2.91212]
[1721110795553,0.0186257,3434.2,3434.0,3.0]
[1721110797243,2.4266,3434.1,3433.1,2.91274]
[1721110797622,2.4266,3434.0,3433.1,2.91274]
[1721110798202,2.4266,3434.0,3433.2,2.91271]
[1721110798453,3.02791042,3434.0,3433.2,2.91271]
[1721110798612,3.02791042,3434.0,3433.3,2.91263]
[1721110798808,2.4266,3434.0,3433.3,2.91263]
[1721110799112,3.02791042,3434.0,3433.4,3.0]
[1721110799319,2.4266,3434.0,3433.4,3.0]
[1721110799640,3.02791042,3434.0,3433.4,3.0]
[1721110800307,0.60131042,3433.9,3433.4,3.0]
[1721110800511,0.60131042,3433.7,3432.9,2.91294]
[1721110801106,0.60131042,3433.7,3433.0,2.91284]
[1721110802149,0.60131042,3433.7,3433.1,3.0]
[1721110802506,0.60131042,3433.6,3433.1,3.0]
[1721110802736,0.60131042,3433.6,3433.1,5.9128]
[1721110803403,0.60131042,3433.6,3433.2,2.91266]
[1721110803615,0.90196564,3433.7,3433.2,2.91266]
[1721110803616,0.60131042,3433.7,3433.3,3.0]
[1721110803870,2.99621042,3433.8,3433.3,3.0]
[1721110804197,0.60291498,3433.9,3433.5,2.91246]
[1721110804389,0.60291498,3433.8,3433.3,5.91262]
[1721110804593,0.60291498,3433.7,3433.4,2.91254]
[1721110805158,3.90638747,3434.1,3433.5,2.91247]
[1721110805159,0.60291498,3433.9,3433.5,2.91247]
[1721110805761,0.60291498,3433.9,3433.6,2.91239]
[1721110807091,0.60313165,3433.9,3433.6,2.91239]
[1721110807961,0.60313165,3433.8,3433.6,2.91239]
[1721110808197,0.60313165,3433.9,3433.6,2.91239]
[1721110808366,0.60313165,3433.8,3433.6,2.91239]
[1721110810065,0.60313165,3433.9,3433.6,2.91239]
[1721110810259,0.60313165,3433.9,3433.7,0.38831736]
[1721110810463,0.60313165,3434.0,3433.7,0.38831736]
[1721110810872,0.60313165,3433.8,3433.6,2.91239]
[1721110811319,0.60313165,3433.8,3433.5,2.91241]
[1721110812420,0.60313165,3433.9,3433.6,2.91238]
[1721110812763,0.60313165,3434.0,3433.6,2.91238]
[1721110812970,0.60313165,3434.1,3433.9,2.91214]
[1721110813970,0.60274601,3434.1,3433.9,2.91214]
[1721110814370,0.60274601,3434.1,3433.9,3.494582]
[1721110814926,0.60274601,3434.1,3433.9,0.582442]
[1721110815081,0.62137171,3434.2,3434.0,2.91205]
[1721110815273,0.0186257,3434.2,3434.0,2.91205]
[1721110815927,0.0186257,3434.2,3434.1,2.91197]
[1721110816419,0.0186257,3434.2,3433.9,2.91209]
[1721110816590,0.0186257,3434.2,3434.1,2.91197]
[1721110820417,0.0186257,3434.2,3434.1,5.82394]
[1721110822507,0.0186257,3434.2,3434.0,2.91198]
[1721110822714,0.0186257,3434.2,3434.1,2.91197]
[1721110829637,0.62126547,3434.2,3434.1,2.91197]
[1721110830205,0.0186257,3434.2,3434.1,2.91197]
[1721110830540,0.62126547,3434.2,3434.1,2.91197]
[1721110830743,0.0186257,3434.2,3434.1,2.91197]
[1721110830903,0.0186257,3434.2,3434.1,6.40635]
[1721110831908,0.0186257,3434.2,3434.1,2.91197]
[1721110832218,0.0186257,3434.2,3433.7,3.0]
[1721110832219,0.0186257,3434.2,3433.8,2.91222]
[1721110832417,0.60332733,3434.1,3433.9,3.0]
[1721110833008,0.60332733,3434.0,3433.8,2.91222]
[1721110833318,0.60332733,3434.0,3433.9,2.91214]
[1721110834508,0.92258535,3434.2,3433.9,2.91214]
[1721110834509,0.0186257,3434.2,3434.1,2.91197]
[1721110837107,0.0186257,3434.2,3434.1,5.82394]
[1721110838727,0.0186257,3434.2,3434.1,5.8821737]
[1721110838939,0.0186257,3434.2,3434.1,8.82394]
[1721110839186,0.0186257,3434.2,3434.1,10.3555964]
[1721110842228,0.0186257,3434.2,3434.1,15.5522664]
[1721110842554,0.0186257,3434.2,3434.1,16.1022664]
[1721110844422,0.0186257,3434.2,3434.1,13.8175664]
[1721110845254,0.0186257,3434.2,3434.1,10.9055964]
[1721110845461,0.0186257,3434.2,3434.1,10.3555964]
[1721110850177,0.0186257,3434.2,3434.1,10.9055964]
[1721110853132,0.0186257,3434.2,3434.1,13.9035964]
[1721110854077,0.0186257,3434.2,3434.1,10.3555964]
[1721110854310,0.0186257,3434.2,3434.1,11.6025964]
[1721110855471,0.0186257,3434.2,3434.1,14.5145664]
[1721110855671,0.0186257,3434.2,3434.1,12.1525964]
[1721110856298,0.0186257,3434.2,3434.1,11.6025964]
[1721110858220,0.0186257,3434.2,3434.1,10.3555964]
[1721110858393,0.0186257,3434.2,3434.1,8.82394]
[1721110865408,0.0186257,3434.2,3434.1,9.37394]
[1721110866755,0.0186257,3434.2,3434.1,12.28591]
[1721110869718,0.0186257,3434.2,3434.1,9.37394]
[1721110878384,0.0186257,3434.2,3434.1,10.62094]
[1721110878579,0.0186257,3434.2,3434.1,12.0324774]
[1721110879055,0.0186257,3434.2,3434.1,14.9444474]
[1721110883479,0.0186257,3434.2,3434.1,20.3881146]
[1721110883901,0.0186257,3434.2,3434.1,20.38806776]
[1721110884106,0.0186257,3434.2,3434.1,20.38807518]
[1721110886077,0.0186257,3434.2,3434.1,18.86908051]
[1721110886277,0.0186257,3434.2,3434.1,20.38807518]
[1721110886815,0.0186257,3434.2,3434.1,15.95711051]
[1721110887297,0.0186257,3434.2,3434.1,15.9571153]
[1721110887599,0.0186257,3434.2,3434.1,14.9444474]
[1721110887783,0.0186257,3434.2,3434.1,15.95717481]
[1721110887989,0.0186257,3434.2,3434.1,14.9444474]
[1721110888386,0.0186257,3434.2,3434.1,15.95713687]
[1721110888687,0.0186257,3434.2,3434.1,14.9444474]
[1721110888883,0.0186257,3434.2,3434.1,15.95714255]
[1721110889262,0.0186257,3434.2,3434.1,15.95711544]
[1721110889460,0.60508002,3435.0,3434.9,5.82258]
[1721110889660,0.60508002,3435.1,3435.0,5.8224]
[1721110889967,0.60508002,3435.1,3435.0,10.6194]
[1721110891219,4.38533788,3435.4,3435.3,5.8219]
[1721110891389,4.6513333,3435.4,3435.3,5.8219]
[1721110892207,4.65132428,3435.4,3435.3,5.8219]
[1721110892579,5.2943385,3435.4,3435.3,5.8219]
[1721110892922,4.65137391,3435.4,3435.3,5.8219]
[1721110893081,5.29436561,3435.4,3435.3,5.8219]
[1721110893908,5.29461049,3435.4,3435.2,1.247]
[1721110894114,5.29461049,3435.4,3435.2,4.15803]
[1721110894115,5.59770136,3435.4,3435.2,4.15803]
[1721110894416,5.59770136,3435.4,3435.3,2.91095]
[1721110894620,5.86384145,3435.4,3435.3,2.91095]
[1721110895024,4.65147797,3435.4,3435.3,2.91095]
[1721110895399,0.26614009,3435.4,3435.3,2.91095]
[1721110895916,1.47850357,3435.4,3435.3,2.91095]
[1721110896287,0.26614009,3435.4,3435.3,2.91095]
[1721110896520,1.47850357,3435.4,3435.3,2.91095]
[1721110897280,1.47850357,3435.4,3435.2,1.247]
[1721110897484,0.9092962,3435.3,3435.2,7.15803]
[1721110898328,0.9092962,3435.4,3435.2,7.15803]
[1721110898528,0.9092962,3435.4,3435.3,2.91095]
[1721110899109,0.9093681,3435.4,3435.3,2.91095]
[1721110900215,0.26612224,3435.4,3435.3,2.91095]
[1721110900423,3.66476348,3435.5,3435.3,2.91095]
[1721110900616,0.90931254,3435.4,3435.3,2.91095]
[1721110901448,2.4524,3435.5,3435.4,2.91086]
[1721110901449,3.36167116,3435.5,3435.4,2.91086]
[1721110901597,3.36167116,3435.5,3435.4,4.15786]
[1721110901598,2.71848027,3435.5,3435.4,4.15786]
[1721110902246,3.36162632,3435.5,3435.4,4.15786]
[1721110903345,0.90922632,3435.5,3435.4,4.15786]
[1721110903905,1.47828552,3435.6,3435.4,4.15786]
[1721110904102,0.90877703,3435.5,3435.4,4.15786]
[1721110904948,0.90877703,3435.6,3435.5,2.91078]
[1721110905242,1.21236348,3435.6,3435.5,2.91078]
[1721110905444,0.26594768,3435.6,3435.5,2.91078]
[1721110905745,1.47831116,3435.6,3435.5,2.91078]
[1721110905943,0.26594768,3435.6,3435.5,2.91078]
[1721110906540,1.21236348,3435.6,3435.5,2.91078]
[1721110906737,0.26594768,3435.6,3435.4,1.247]
[1721110906957,1.47831116,3435.6,3435.3,1.247]
[1721110907108,0.90931888,3435.4,3435.3,4.15795]
[1721110907503,0.90931888,3435.4,3435.3,7.15795]
[1721110907739,0.90931888,3435.5,3435.4,2.91086]
[1721110908115,0.26622499,3435.5,3435.4,2.91086]
[1721110908315,0.90981295,3435.5,3435.4,2.91086]
[1721110908715,0.26625746,3435.5,3435.3,4.247]
[1721110908903,0.90981683,3435.4,3435.3,7.15795]
[1721110910310,0.90983807,3435.4,3435.3,7.15795]
[1721110911004,0.90983807,3435.5,3435.3,7.15795]
[1721110911357,0.90983807,3435.4,3435.3,7.15795]
[1721110912345,0.90983807,3435.5,3435.3,7.15795]
[1721110912546,0.90983807,3435.5,3435.4,1.247]
[1721110913446,0.90983807,3435.5,3435.4,4.15786]
[1721110915749,0.26625196,3435.7,3435.5,2.91078]
[1721110916048,0.26625196,3435.7,3435.6,1.247]
[1721110917013,0.26625196,3435.7,3435.6,4.15769]
[1721110918755,4.38533788,3436.0,3435.6,4.15769]
[1721110919246,2.2749,3436.1,3435.6,4.15769]
[1721110919247,0.69284192,3435.9,3435.6,4.15769]
[1721110919414,0.69284192,3435.8,3435.6,4.15769]
[1721110919612,0.69284192,3435.7,3435.6,4.15769]
[1721110920146,0.69284192,3436.0,3435.6,4.15769]
[1721110920353,2.339,3435.9,3435.4,4.15782]
[1721110920645,0.69284192,3435.8,3435.5,2.91076]
[1721110921820,0.69337038,3435.7,3435.5,2.91076]
[1721110922023,0.69337038,3435.6,3435.5,2.91076]
[1721110923105,0.69337038,3435.8,3435.5,2.91076]
[1721110923312,0.69337038,3435.7,3435.5,2.91076]
[1721110923518,0.69337038,3435.6,3435.5,2.91076]
[1721110924139,0.69337038,3435.6,3435.4,1.247]
[1721110924318,2.339,3435.9,3435.4,4.15784]
[1721110924530,0.69358677,3435.8,3435.4,4.15784]
[1721110925034,2.2643,3435.6,3434.4,2.91165]
[1721110925228,3.23089338,3435.7,3434.6,1.247]
[1721110925229,2.2643,3435.4,3434.6,1.247]
[1721110925538,2.2643,3435.2,3434.6,4.15853]
[1721110925854,2.2643,3435.2,3434.7,3.0]
[1721110925855,0.6934659,3435.1,3434.7,3.0]
[1721110926029,0.6934659,3435.1,3434.6,4.15853]
[1721110926751,0.6934659,3435.1,3434.8,1.247]
[1721110926952,0.6934659,3435.1,3435.0,1.247]
[1721110927757,0.6934659,3435.1,3435.0,4.15818]
[1721110928260,0.69367176,3435.1,3435.0,4.15818]
[1721110928414,0.69376851,3435.4,3435.1,2.91111]
[1721110928614,4.38533788,3435.9,3435.3,1.247]
[1721110928919,3.13634183,3435.8,3435.5,1.247]
[1721110929119,0.69414183,3435.7,3435.5,1.247]
[1721110930158,0.69414183,3435.7,3435.4,2.91085]
[1721110930544,0.69414183,3435.7,3435.3,1.247]
[1721110930858,0.69414183,3435.7,3435.3,2.91094]
[1721110931223,0.69414183,3435.7,3435.3,4.15794]
[1721110931749,0.69414183,3435.7,3435.5,2.91075]
[1721110932054,0.69457011,3435.6,3435.5,4.15775]
[1721110932256,0.69457011,3435.7,3435.5,4.15775]
[1721110933348,2.3773,3435.6,3435.3,2.91094]
[1721110933662,0.69457011,3435.5,3435.3,2.91094]
[1721110934354,1.79265465,3435.4,3435.3,2.91094]
[1721110934571,2.48722476,3435.4,3435.3,5.91094]
[1721110934731,2.48722476,3435.4,3435.3,6.917845]
[1721110934943,0.96233245,3435.4,3435.3,11.075795]
[1721110935253,0.26776234,3435.4,3435.3,11.075795]
[1721110935431,0.9624308,3435.4,3435.3,11.075795]
[1721110935659,0.26776234,3435.4,3435.3,11.075795]
[1721110935973,1.5261143,3435.5,3435.4,2.91086]
[1721110936151,0.83545341,3435.7,3435.6,2.91069]
[1721110936474,0.6955724,3435.7,3435.6,2.91069]
[1721110936767,1.5310998,3435.7,3435.6,2.91069]
[1721110937267,1.53093422,3435.7,3435.6,2.91069]
[1721110937481,0.96380528,3435.7,3435.6,2.91069]
[1721110937663,1.53050177,3435.7,3435.6,2.91069]
[1721110938451,1.53050177,3435.7,3435.4,4.15786]
[1721110938632,1.52579662,3435.5,3435.4,4.15786]
[1721110938835,2.48868328,3435.5,3435.4,4.15786]
[1721110939035,2.48868328,3435.5,3435.4,5.164749]
[1721110939273,0.96288666,3435.5,3435.4,5.164749]
[1721110940243,2.22052114,3435.5,3435.4,5.164749]
[1721110940446,0.96288666,3435.5,3435.4,5.164749]
[1721110940864,2.22026522,3435.5,3435.4,5.164749]
[1721110941046,2.4884981,3435.5,3435.4,5.164749]
[1721110941375,0.96288666,3435.5,3435.4,5.164749]
[1721110941584,2.22044622,3435.5,3435.4,5.164749]
[1721110941769,2.4886791,3435.5,3435.4,5.164749]
[1721110942082,2.48888307,3435.5,3435.4,5.164749]
[1721110942554,0.96294931,3435.5,3435.4,5.164749]
[1721110943280,0.96294931,3435.5,3435.4,8.075609]
[1721110943785,1.48822751,3435.5,3435.4,8.075609]
[1721110943987,1.48822751,3435.5,3435.4,11.075609]
[1721110944157,0.26823288,3435.5,3435.4,11.075609]
[1721110944750,0.26823288,3435.5,3435.4,9.828609]
[1721110945064,0.26823288,3435.5,3435.4,5.91086]
[1721110945299,0.962242,3435.5,3435.4,5.91086]
[1721110945595,0.26823288,3435.5,3435.4,5.91086]
[1721110945747,0.96230534,3435.5,3435.4,5.91086]
[1721110946174,0.96230534,3435.5,3435.4,7.15786]
[1721110946595,1.913328,3435.5,3435.4,7.15786]
[1721110946754,2.18156088,3435.5,3435.4,7.15786]
[1721110947250,0.9146217,3435.5,3435.4,11.3164]
[1721110947453,0.9146217,3435.6,3435.5,5.82156]
[1721110947703,0.9146217,3435.6,3435.5,8.82156]
[1721110947865,0.9146217,3435.7,3435.6,5.82138]
[1721110948210,0.9146217,3435.7,3435.6,10.06838]
[1721110948404,1.21925554,3435.8,3435.6,4.247]
[1721110948564,0.91430714,3435.7,3435.6,10.06838]
[1721110948770,0.26744129,3435.7,3435.6,11.599075]
[1721110949003,1.21925554,3435.8,3435.7,5.82122]
[1721110949381,0.26745448,3435.9,3435.8,2.91053]
[1721110949698,1.5236062,3436.0,3435.9,2.91038]
[1721110949898,2.21763381,3436.0,3435.9,2.91038]
[1721110950109,2.48508335,3436.0,3435.9,2.91038]
[1721110951002,0.96147715,3436.0,3435.9,2.91038]
[1721110951298,2.48670139,3436.0,3435.9,2.91038]
[1721110951502,0.69496127,3436.0,3435.9,2.91038]
[1721110951714,2.22057622,3436.0,3435.9,2.91038]
[1721110951867,2.48802576,3436.0,3435.9,2.91038]
[1721110952204,2.48846608,3436.0,3435.9,2.91038]
[1721110953021,2.48846608,3436.0,3435.9,3.917179]
[1721110953227,0.96241081,3436.0,3435.9,3.917179]
[1721110954779,0.26744954,3436.0,3435.9,3.917179]
[1721110954982,1.52539954,3436.1,3436.0,2.91034]
[1721110955169,0.26770386,3436.1,3436.0,4.15734]
[1721110955573,0.96289665,3436.1,3436.0,4.15734]
[1721110955876,2.4885772,3436.1,3436.0,4.15734]
[1721110956386,0.96289665,3436.1,3436.0,4.15734]
[1721110957595,1.22066845,3436.1,3436.0,4.15734]
[1721110957807,0.69540237,3436.1,3436.0,4.15734]
[1721110958020,0.26770386,3436.1,3436.0,4.15734]
[1721110958225,1.48801871,3436.1,3436.0,4.15734]
[1721110959119,0.96295162,3436.1,3436.0,4.15734]
[1721110959276,1.22025841,3436.1,3436.0,4.15734]
[1721110959484,1.48796227,3436.1,3436.0,4.15734]
[1721110960384,0.26770386,3436.1,3436.0,4.15734]
[1721110960583,1.48796227,3436.1,3436.0,4.15734]
[1721110960893,0.26770386,3436.1,3436.0,4.15734]
[1721110961290,1.22025841,3436.1,3436.0,4.15734]
[1721110961477,1.48796227,3436.1,3436.0,4.15734]
[1721110961819,0.26770386,3436.1,3436.0,4.15734]
[1721110962379,0.26770386,3436.1,3436.0,7.0677]
[1721110963105,1.22025841,3436.3,3436.2,2.91019]
[1721110963304,1.22025841,3436.4,3436.3,3.616846]
[1721110963513,1.22025841,3436.4,3436.3,2.9101]
[1721110963887,0.91396049,3436.4,3436.3,2.9101]
[1721110964079,0.26722119,3436.4,3436.3,2.9101]
[1721110964317,1.48746288,3436.5,3436.3,2.9101]
[1721110964532,0.26720447,3436.5,3436.4,1.247]
[1721110964733,0.26719952,3436.5,3436.4,4.15702]
[1721110965089,1.22025841,3436.6,3436.5,2.90993]
[1721110965289,1.48750138,3436.6,3436.5,2.90993]
[1721110966397,0.91475645,3436.6,3436.5,2.90993]
[1721110966616,4.38533788,3436.7,3436.6,2.90985]
[1721110966963,5.30015828,3436.7,3436.6,7.15685]
[1721110967286,4.38533788,3436.7,3436.6,10.0667]
[1721110967824,4.38533788,3436.7,3436.6,7.15685]